[Event "Kragero Resort Chess A 2018"]
[Site "Kragero"]
[Date "2018.02.25"]
[Round "8"]
[White "Huse, Sigurd Kjelsbol"]
[Black "Ingebretsen, Jens E"]
[Result "0-1"]
[ECO "C68"]
[WhiteElo "1993"]
[BlackElo "2174"]
[Annotator "NA"]
[PlyCount "94"]
[EventDate "2018.??.??"]
[EventType "swiss"]
[EventCountry "NOR"]
[SourceTitle "playchess.com"]
[Source "ChessBase"]
[SourceQuality "1"]
[TimeControl "5400+30"]

1. e4 {[%emt 0:00:00]} e5 {[%emt 0:00:13]} 2. Nf3 {[%emt 0:00:00]} Nc6 {[%emt 0:00:14]} 3. Bb5 {[%emt 0:00:00]} a6 {[%emt 0:00:21]} 4. Bxc6 {[%emt 0:00:00]} dxc6 {[%emt 0:00:16]} 5. O-O {[%emt 0:00:00]} Qf6 {[%emt 0:00:19]} 6. d3 {[%emt 0:02:23]} Bg4 {[%emt 0:00:16]} 7. Be3 {[%emt 0:00:07] C68: Ruy Lopez: Exchange Variation, sidelines} Bxf3 {[%emt 0:00:28]} 8. Qxf3 {[%emt 0:00:03]} Qxf3 {[%emt 0:00:02]} 9. gxf3 {[%emt 0:00:13]} c5 $146 {[%emt 0:00:14]} ({Find the theoretical novelty and annotate with similar games:} 9... Bd6 10. Rd1 Ne7 11. c3 c5 12. Nd2 Ng6 13. Kf1 O-O-O 14. a4 Nf8 {½-½ (30) Zapata,A (2438)-Quesada Perez,Y (2624) Greensboro 2017}) 10. Nd2 {[%emt 0:02:19]} f6 {[%emt 0:03:08]} 11. f4 {[%emt 0:00:45]} exf4 {[%emt 0:00:53]} 12. Bxf4 {[%emt 0:00:07]} O-O-O {[%emt 0:00:16]} 13. a4 {[%emt 0:02:40]} Ne7 {[%emt 0:00:32]} 14. Nc4 {[%emt 0:04:23]} Nc6 {[%emt 0:00:26]} 15. Kg2 {[%emt 0:07:33]} Nd4 {[%emt 0:00:53]} 16. Ne3 {[%emt 0:00:49]} h5 {[%emt 0:03:19]} (16... g5 $5 17. Bg3 $8 h5 $11) 17. h3 {[%emt 0:05:51]} Bd6 {[%emt 0:03:00]} (17... g5 $11 18. Bh2 h4) 18. Bxd6 {[%emt 0:00:59]} Rxd6 {[%emt 0:00:02]} 19. f4 {[%emt 0:01:44]} Rg8 {[%emt 0:02:29]} 20. Rf2 {[%emt 0:02:30]} g6 {[%emt 0:03:54]} 21. Kh2 {[%emt 0:03:20]} Kb8 {[%emt 0:04:07] [#]} (21... f5 $11 {remains equal.}) 22. Rg1 $1 {[%emt 0:05:17]} g5 {[%emt 0:00:43]} 23. fxg5 {[%emt 0:13:21]} fxg5 {[%emt 0:00:07]} 24. Rgf1 {[%emt 0:01:57]} Ka7 {[%emt 0:02:42]} 25. Rf7 {[%emt 0:03:36]} g4 {[%emt 0:01:48]} 26. Rxc7 {[%emt 0:06:21]} Nf3+ {[%emt 0:17:09]} 27. Kh1 {[%emt 0:01:07]} Rg5 {[%emt 0:16:36]} 28. Rh7 $18 {[%emt 0:08:28]} Rf6 {[%emt 0:03:21]} 29. h4 {[%emt 0:05:47]} Rgg6 {[%emt 0:06:58]} 30. Rxh5 {[%emt 0:00:52]} c4 {[%emt 0:06:04]} 31. Rf5 {[%emt 0:02:30]} cxd3 {[%emt 0:01:40]} 32. cxd3 {[%emt 0:01:03]} Rb6 {[%emt 0:01:14]} 33. h5 {[%emt 0:04:17]} Rg8 {[%emt 0:01:44]} 34. Nc4 {[%emt 0:02:07]} Rb3 {[%emt 0:02:34]} 35. Rd5 {[%emt 0:03:20]} b5 {[%emt 0:10:18]} 36. axb5 {[%emt 0:03:54]} axb5 {[%emt 0:00:18]} 37. Rd7+ {[%emt 0:02:13]} Kb8 {[%emt 0:00:20]} 38. Nd6 {[%emt 0:00:06]} Rb4 {[%emt 0:01:08]} 39. Ra1 {[%emt 0:05:18]} Ra4 {[%emt 0:00:33]} 40. Rxa4 {[%emt 0:00:02]} bxa4 {[%emt 0:00:07]} 41. Nf5 {[%emt 0:00:45]} Rg5 {[%emt 0:06:12]} 42. Ng3 {[%emt 0:02:06]} Rb5 {[%emt 0:01:46]} 43. Rf7 {[%emt 0:00:40]} Rxb2 {[%emt 0:00:44]} 44. Nf1 {[%emt 0:00:01]} Rf2 {[%emt 0:00:59]} 45. h6 {[%emt 0:00:58]} g3 {[%emt 0:00:43]} 46. Rxf3 {[%emt 0:00:25]} g2+ {[%emt 0:00:08]} 47. Kg1 {[%emt 0:00:11]} gxf1=R# {[%emt 0:00:11]} 0-1

[Event "Kragero Resort Chess A 2018"]
[Site "Kragero"]
[Date "2018.02.25"]
[Round "8"]
[White "Skjolingstad, Sverre"]
[Black "Royset, Pal"]
[Result "0-1"]
[ECO "B47"]
[WhiteElo "1749"]
[BlackElo "2285"]
[Annotator "NA"]
[PlyCount "92"]
[EventDate "2018.??.??"]
[EventType "swiss"]
[EventCountry "NOR"]
[SourceTitle "playchess.com"]
[Source "ChessBase"]
[SourceQuality "1"]
[TimeControl "5400+30"]

{[%evp 8,90,31,8,42,34,33,20,31,0,48,4,4,-6,0,0,-9,0,0,0,32767,32767,32767,32767,32767,32767,32767,32767,32767,32767,32767,32767,32767,-116,32767,-120,-122,-101,-125,-120,-126,-374,32767,-417,-385,-372,0,32767,0,-350,-345,32767,32767,32767,32767,32767,32767,-115,32767,32767,32767,32767,-139,-149,-101,-162,32767,32767,32767,32767,-553,32767,32767,32767,32767,32767,32767,32767,32767,32767,32767,32767,32767,-1045,-12840]} 1. e4 {[%emt 0:00:00]} c5 {[%emt 0:00:07]} 2. Nf3 {[%emt 0:00:00]} e6 {[%emt 0:00:06]} 3. d4 {[%emt 0:00:00]} cxd4 {[%emt 0:00:06]} 4. Nxd4 {[%emt 0:00:04]} Nc6 {[%emt 0:00:06]} 5. Nc3 {[%emt 0:00:48]} Qc7 {[%emt 0:00:08]} 6. Be2 {[%emt 0:01:24]} a6 {[%emt 0:00:48]} 7. O-O {[%emt 0:00:29]} b5 {[%emt 0:00:37] LiveBook: 319 Games} 8. Re1 {[%emt 0:07:02]} Nf6 {[%emt 0:04:14]} 9. Bf3 {[%emt 0:05:24] B43: Sicilian: Kan Variation: 5 Nc3} (9. Nxc6 dxc6 10. e5 Nd5 11. Nxd5 cxd5 12. Bd3 g6 13. Bg5 Bg7 14. a4 O-O 15. Bf6 b4 16. Qg4 a5 {1-0 (47) Diamant,A (2412)-Burstein,R (2331) Beijing 2008}) 9... Ne5 {[%emt 0:09:52]} 10. Nd5 $146 {[%emt 0:21:59]} ({Predecessor:} 10. Bf4 d6 11. Bg3 Bb7 12. h3 Be7 13. Kh1 O-O 14. Rc1 Rac8 15. a3 Nc4 16. Rb1 Nxa3 17. bxa3 Qxc3 {0-1 (33) Botello,G (1980)-Sanchez Liecano,S (2282) Pamplona 2012}) 10... exd5 {[%emt 0:10:08]} 11. exd5 {[%emt 0:00:10]} Bd6 {[%emt 0:04:32]} 12. Bf4 {[%emt 0:00:56]} O-O {[%emt 0:02:03] [#]} 13. Rxe5 $1 {[%emt 0:02:12]} Bxe5 {[%emt 0:01:00]} 14. d6 {[%emt 0:00:08]} Qxd6 {[%emt 0:01:52]} 15. Bxe5 {[%emt 0:00:49]} Qxe5 {[%emt 0:00:16]} 16. Bxa8 {[%emt 0:00:14]} d5 {[%emt 0:01:10]} 17. Bc6 {[%emt 0:08:33]} Ng4 {[%emt 0:02:16]} 18. g3 {[%emt 0:06:44]} Qf6 {[%emt 0:06:02]} 19. f4 {[%emt 0:07:00]} Ne3 {[%emt 0:07:00]} 20. Qd3 {[%emt 0:08:40]} Nf5 {[%emt 0:03:13]} 21. Nxf5 {[%emt 0:01:24]} Bxf5 {[%emt 0:00:17]} 22. Qxd5 {[%emt 0:00:35]} Qxb2 {[%emt 0:03:40]} 23. Re1 {[%emt 0:06:27]} Qxc2 {[%emt 0:05:05]} 24. Re8 $2 {[%emt 0:01:56]} (24. Qd6 $17 Be6 25. Bd5 Bxd5 26. Qxd5) 24... Rxe8 {[%emt 0:05:32]} 25. Bxe8 {[%emt 0:00:14]} Qb1+ $2 {[%emt 0:01:45]} ({Black should try} 25... Be6 $19 26. Qd8 Qb1+ 27. Kg2 Qxa2+ 28. Kg1 Qb1+ 29. Kg2 Qb2+ 30. Kg1 Qf6 31. Qxf6 gxf6) 26. Kf2 {[%emt 0:00:19]} Qc2+ {[%emt 0:00:26]} 27. Kg1 {[%emt 0:02:02]} Qb1+ {[%emt 0:02:47]} 28. Kf2 {[%emt 0:00:14]} Qb2+ {[%emt 0:00:32]} 29. Kf3 {[%emt 0:02:37]} Bg4+ {[%emt 0:01:48]} 30. Kxg4 {[%emt 0:02:09]} Qe2+ {[%emt 0:00:08]} 31. Kf5 {[%emt 0:03:23]} Qxe8 {[%emt 0:01:31]} 32. Qe5 {[%emt 0:01:22]} Qc8+ {[%emt 0:04:56]} 33. Ke4 {[%emt 0:01:00]} h6 {[%emt 0:01:10]} 34. Qd5 {[%emt 0:01:15]} b4 {[%emt 0:02:29]} 35. Kf3 {[%emt 0:01:30]} Qb8 {[%emt 0:02:19]} 36. Kg4 {[%emt 0:01:00]} (36. h4 $17) 36... Qb6 {[%emt 0:00:56]} 37. f5 {[%emt 0:02:44]} a5 {[%emt 0:01:04]} 38. Qa8+ {[%emt 0:00:16]} Kh7 {[%emt 0:00:18]} 39. Qd5 {[%emt 0:00:12]} Qc7 {[%emt 0:01:01]} 40. Qb5 {[%emt 0:01:50]} Qd8 {[%emt 0:01:14]} 41. h4 {[%emt 0:01:06]} Qd1+ {[%emt 0:01:19]} 42. Kh3 {[%emt 0:00:22]} Qh1+ {[%emt 0:00:45]} 43. Kg4 {[%emt 0:00:06]} Qe4+ {[%emt 0:00:22]} 44. Kh3 {[%emt 0:00:11]} h5 {[%emt 0:00:44]} 45. Qf1 {[%emt 0:01:39]} a4 $19 {[%emt 0:00:48]} 46. Kh2 {[%emt 0:00:46]} b3 {[%emt 0:00:27]} 0-1

[Event "Kragero Resort Chess A 2018"]
[Site "Kragero"]
[Date "2018.02.25"]
[Round "9"]
[White "Genocchio, Daniele"]
[Black "Hobber, Anders"]
[Result "1-0"]
[ECO "C02"]
[WhiteElo "2385"]
[BlackElo "2286"]
[Annotator "ChessBase"]
[PlyCount "95"]
[EventDate "2018.??.??"]
[EventType "swiss"]
[EventCountry "NOR"]
[SourceTitle "playchess.com"]
[Source "ChessBase"]
[SourceQuality "1"]
[TimeControl "5400+30"]

1. e4 {[%emt 0:02:29]} e6 {[%emt 0:00:00]} 2. d4 {[%emt 0:00:30]} d5 {[%emt 0:00:00]} 3. e5 {[%emt 0:00:38]} c5 {[%emt 0:00:00]} 4. c3 {[%emt 0:00:14]} Nc6 {[%emt 0:00:13]} 5. Be3 {[%emt 0:02:08]} Qb6 {[%emt 0:04:41]} 6. Qd2 {[%emt 0:00:04]} Nh6 {[%emt 0:06:06]} 7. Nf3 {[%emt 0:03:44]} cxd4 {[%emt 0:16:24]} 8. cxd4 {[%emt 0:00:11]} Nf5 {[%emt 0:00:15]} 9. Nc3 {[%emt 0:06:11]} f6 {[%emt 0:07:29]} 10. exf6 {[%emt 0:00:19]} gxf6 {[%emt 0:00:46]} 11. Bd3 {[%emt 0:00:13]} Nxe3 {[%emt 0:00:23]} 12. fxe3 {[%emt 0:00:31]} Bg7 {[%emt 0:06:21]} 13. O-O {[%emt 0:03:34]} O-O {[%emt 0:00:40]} 14. Qf2 {[%emt 0:02:28]} Qd8 {[%emt 0:07:20]} 15. e4 {[%emt 0:05:22]} Nb4 {[%emt 0:03:05]} 16. Bb1 {[%emt 0:03:00]} dxe4 {[%emt 0:01:46]} 17. Bxe4 {[%emt 0:00:28]} f5 {[%emt 0:05:34]} 18. Bb1 {[%emt 0:00:03]} Nc6 {[%emt 0:04:55]} 19. Rd1 {[%emt 0:07:00]} Qb6 {[%emt 0:01:46]} 20. a3 {[%emt 0:00:06]} Rd8 {[%emt 0:00:35]} 21. Ba2 {[%emt 0:00:03]} Rxd4 {[%emt 0:05:00]} 22. Nxd4 {[%emt 0:00:46]} Bxd4 {[%emt 0:00:08]} 23. Rxd4 {[%emt 0:00:08]} Qxd4 {[%emt 0:00:07]} 24. Qxd4 {[%emt 0:13:12]} Nxd4 {[%emt 0:00:12]} 25. Rd1 {[%emt 0:00:20]} Nc6 {[%emt 0:00:38]} 26. b4 {[%emt 0:23:52]} a6 {[%emt 0:01:18]} 27. Na4 {[%emt 0:00:59]} Kf7 {[%emt 0:01:38]} 28. Nb6 {[%emt 0:00:01]} Rb8 {[%emt 0:00:20]} 29. Rd3 {[%emt 0:12:10]} Ke7 {[%emt 0:04:44]} 30. Rh3 {[%emt 0:02:46]} Nd4 {[%emt 0:01:54]} 31. Rxh7+ {[%emt 0:02:54]} Kd6 {[%emt 0:00:17]} 32. h4 {[%emt 0:05:41]} Kc6 {[%emt 0:00:35]} 33. Nc4 {[%emt 0:00:18]} b5 {[%emt 0:02:07]} 34. Ne5+ {[%emt 0:00:16]} Kd6 {[%emt 0:00:34]} 35. Nf7+ {[%emt 0:00:02]} Ke7 {[%emt 0:00:51]} 36. Ng5+ {[%emt 0:00:59]} Kf6 {[%emt 0:01:31]} 37. Rh8 {[%emt 0:00:50]} Ra8 {[%emt 0:00:43]} 38. Rf8+ {[%emt 0:03:10]} Ke5 {[%emt 0:04:43]} 39. h5 {[%emt 0:00:42]} Bb7 {[%emt 0:01:33]} 40. Rxa8 {[%emt 0:00:06]} Bxa8 {[%emt 0:00:03]} 41. h6 {[%emt 0:00:13]} Kf6 {[%emt 0:01:46]} 42. Nxe6 {[%emt 0:01:16]} Nxe6 {[%emt 0:00:39]} 43. Bxe6 {[%emt 0:00:01]} f4 {[%emt 0:00:23]} 44. h7 {[%emt 0:01:08]} Kg7 {[%emt 0:00:06]} 45. Bf5 {[%emt 0:00:02]} Bb7 {[%emt 0:00:45]} 46. Kh2 {[%emt 0:00:17]} Kh8 {[%emt 0:00:32]} 47. Kh3 {[%emt 0:00:05]} Kg7 {[%emt 0:00:14]} 48. Kg4 {[%emt 0:00:22]} 1-0

[Event "Kragero Resort Chess A 2018"]
[Site "Kragero"]
[Date "2018.02.25"]
[Round "9"]
[White "Haug, Johannes"]
[Black "Fossan, Aleksander"]
[Result "1-0"]
[ECO "B27"]
[WhiteElo "2355"]
[BlackElo "2004"]
[Annotator "NA"]
[PlyCount "59"]
[EventDate "2018.??.??"]
[EventType "swiss"]
[EventCountry "NOR"]
[SourceTitle "playchess.com"]
[Source "ChessBase"]
[SourceQuality "1"]
[TimeControl "5400+30"]

1. e4 {[%emt 0:00:00]} c5 {[%emt 0:02:21]} 2. Nf3 {[%emt 0:00:00]} g6 {[%emt 0:00:25]} 3. c3 {[%emt 0:00:39]} Bg7 {[%emt 0:00:06]} 4. d4 {[%emt 0:00:12]} cxd4 {[%emt 0:00:11]} 5. cxd4 {[%emt 0:00:06]} d5 {[%emt 0:00:05]} 6. e5 {[%emt 0:00:12]} Bg4 {[%emt 0:00:08]} 7. Bb5+ {[%emt 0:00:16]} Nd7 {[%emt 0:00:05]} 8. O-O {[%emt 0:04:20]} e6 {[%emt 0:00:13]} 9. Nbd2 {[%emt 0:01:13]} a6 {[%emt 0:00:44]} 10. Be2 {[%emt 0:01:37]} Ne7 {[%emt 0:00:13]} 11. h3 {[%emt 0:00:23]} Bxf3 {[%emt 0:00:05]} 12. Nxf3 {[%emt 0:00:09]} O-O {[%emt 0:00:22]} 13. b3 {[%emt 0:06:42]} f6 {[%emt 0:04:38]} 14. exf6 {[%emt 0:07:15]} Nxf6 {[%emt 0:00:52]} 15. Bb2 {[%emt 0:08:19]} Nc6 {[%emt 0:04:39]} 16. Re1 {[%emt 0:04:27]} Ne4 {[%emt 0:05:52]} 17. Rc1 {[%emt 0:17:57]} Bh6 {[%emt 0:05:51]} 18. Rb1 {[%emt 0:02:05]} Nb4 {[%emt 0:05:04]} 19. Bd3 {[%emt 0:07:25]} Nxd3 {[%emt 0:02:35]} 20. Qxd3 {[%emt 0:00:25]} Rc8 {[%emt 0:02:57]} 21. Re2 {[%emt 0:08:51]} Bf4 {[%emt 0:06:12]} 22. g3 {[%emt 0:06:19]} Bh6 {[%emt 0:02:11]} 23. Kg2 {[%emt 0:00:32]} Qf6 {[%emt 0:06:12]} 24. Rf1 {[%emt 0:04:23]} Bg7 {[%emt 0:05:24]} 25. Ne5 {[%emt 0:02:13]} Qf5 {[%emt 0:00:29]} 26. f4 {[%emt 0:04:34]} Bxe5 {[%emt 0:00:27]} 27. dxe5 {[%emt 0:01:13]} Rc6 {[%emt 0:02:30]} 28. g4 {[%emt 0:02:08]} Qf7 {[%emt 0:00:01]} 29. Kh2 {[%emt 0:04:23]} Rd8 {[%emt 0:11:51]} 30. Rxe4 {[%emt 0:01:57]} 1-0

[Event "Kragero Resort Chess A 2018"]
[Site "Kragero"]
[Date "2018.02.25"]
[Round "9"]
[White "Risting, Eivind Olav"]
[Black "Fossan, Andreas"]
[Result "1-0"]
[ECO "A05"]
[WhiteElo "2308"]
[BlackElo "1997"]
[Annotator "ChessBase"]
[PlyCount "71"]
[EventDate "2018.??.??"]
[EventType "swiss"]
[EventCountry "NOR"]
[SourceTitle "playchess.com"]
[Source "ChessBase"]
[SourceQuality "1"]
[TimeControl "5400+30"]

1. Nf3 {[%emt 0:00:00]} Nf6 {[%emt 0:01:03]} 2. g3 {[%emt 0:00:00]} d5 {[%emt 0:01:04]} 3. Bg2 {[%emt 0:00:23]} e6 {[%emt 0:00:12]} 4. c4 {[%emt 0:00:27]} Be7 {[%emt 0:00:31]} 5. d4 {[%emt 0:00:47]} O-O {[%emt 0:00:13]} 6. Qc2 {[%emt 0:00:06]} c6 {[%emt 0:00:20]} 7. O-O {[%emt 0:00:06]} a5 {[%emt 0:00:44]} 8. Nbd2 {[%emt 0:02:57]} b5 {[%emt 0:00:19]} 9. cxb5 {[%emt 0:09:37]} cxb5 {[%emt 0:00:09]} 10. e4 {[%emt 0:00:18]} Bb7 {[%emt 0:02:34]} 11. e5 {[%emt 0:02:21]} Nfd7 {[%emt 0:03:36]} 12. Re1 {[%emt 0:05:10]} Nc6 {[%emt 0:00:20]} 13. Nf1 {[%emt 0:01:15]} Rc8 {[%emt 0:01:11]} 14. Qd1 {[%emt 0:00:23]} b4 {[%emt 0:04:51]} 15. h4 {[%emt 0:00:48]} Ba6 {[%emt 0:05:33]} 16. h5 {[%emt 0:01:48]} b3 {[%emt 0:12:08]} 17. a3 {[%emt 0:18:21]} a4 {[%emt 0:02:49]} 18. g4 {[%emt 0:11:16]} h6 {[%emt 0:06:34]} 19. Ne3 {[%emt 0:04:35]} Na5 {[%emt 0:02:56]} 20. Bd2 {[%emt 0:18:23]} Nc4 {[%emt 0:04:05]} 21. Nxc4 {[%emt 0:00:14]} Bxc4 {[%emt 0:00:41]} 22. Bf4 {[%emt 0:02:13]} Ba6 {[%emt 0:12:40]} 23. Rc1 {[%emt 0:02:12]} Nb6 {[%emt 0:05:24]} 24. Rxc8 {[%emt 0:01:43]} Qxc8 {[%emt 0:09:03]} 25. g5 {[%emt 0:01:10]} hxg5 {[%emt 0:01:19]} 26. Nxg5 {[%emt 0:03:53]} Bxg5 {[%emt 0:03:13]} 27. Bxg5 {[%emt 0:01:25]} Qc2 {[%emt 0:03:10]} 28. Qg4 {[%emt 0:00:28]} Qh7 {[%emt 0:03:29]} 29. Re3 {[%emt 0:07:25]} Bd3 {[%emt 0:02:01]} 30. Bf6 {[%emt 0:02:59]} Bf5 {[%emt 0:00:44]} 31. Qg5 {[%emt 0:00:13]} Kh8 {[%emt 0:03:00]} 32. Rg3 {[%emt 0:00:38]} Bg6 {[%emt 0:02:52]} 33. hxg6 {[%emt 0:00:53]} Qxg6 {[%emt 0:00:53]} 34. Rh3+ {[%emt 0:01:20]} Kg8 {[%emt 0:00:43]} 35. Qh4 {[%emt 0:00:05]} gxf6 {[%emt 0:00:42]} 36. Qh8# 1-0

[Event "Kragero Resort Chess A 2018"]
[Site "Kragero"]
[Date "2018.02.25"]
[Round "9"]
[White "Royset, Pal"]
[Black "Pantzar, Milton"]
[Result "1-0"]
[ECO "C77"]
[WhiteElo "2285"]
[BlackElo "2260"]
[Annotator "NA"]
[PlyCount "75"]
[EventDate "2018.??.??"]
[EventType "swiss"]
[EventCountry "NOR"]
[SourceTitle "playchess.com"]
[Source "ChessBase"]
[SourceQuality "1"]
[TimeControl "5400+30"]

1. e4 {[%emt 0:00:00]} e5 {[%emt 0:00:06]} 2. Nf3 {[%emt 0:00:04]} Nc6 {[%emt 0:00:05]} 3. Bb5 {[%emt 0:00:59]} a6 {[%emt 0:00:05]} 4. Ba4 {[%emt 0:00:05]} Nf6 {[%emt 0:00:08]} 5. d3 {[%emt 0:00:23]} d6 {[%emt 0:00:05]} 6. Bxc6+ {[%emt 0:01:43]} bxc6 {[%emt 0:00:06]} 7. O-O {[%emt 0:00:49]} Be7 {[%emt 0:04:36]} 8. c4 {[%emt 0:04:03]} O-O {[%emt 0:04:31]} 9. Nc3 {[%emt 0:05:07]} Re8 {[%emt 0:07:10]} 10. h3 {[%emt 0:03:23]} Bf8 {[%emt 0:06:02]} 11. Re1 {[%emt 0:06:52]} Nd7 {[%emt 0:13:36]} 12. d4 {[%emt 0:05:26]} exd4 {[%emt 0:01:28]} 13. Nxd4 {[%emt 0:00:58]} Ne5 {[%emt 0:00:46]} 14. b3 {[%emt 0:02:33]} Bd7 {[%emt 0:02:46]} 15. f4 {[%emt 0:05:50]} Ng6 {[%emt 0:01:17]} 16. f5 {[%emt 0:04:08]} Ne5 {[%emt 0:01:31]} 17. Bf4 {[%emt 0:04:41]} a5 {[%emt 0:09:12]} 18. Nf3 {[%emt 0:02:55]} Nxf3+ {[%emt 0:01:42]} 19. Qxf3 {[%emt 0:00:41]} g6 {[%emt 0:02:40]} 20. fxg6 {[%emt 0:03:17]} hxg6 {[%emt 0:12:55]} 21. e5 {[%emt 0:04:35]} Bg7 {[%emt 0:01:11]} 22. Qg3 {[%emt 0:06:00]} a4 {[%emt 0:08:53]} 23. Nxa4 {[%emt 0:04:00]} Ra5 {[%emt 0:00:59]} 24. c5 {[%emt 0:03:03]} dxc5 {[%emt 0:05:41]} 25. Rad1 {[%emt 0:03:58]} Qc8 {[%emt 0:00:51]} 26. Qc3 {[%emt 0:02:13]} Ra8 {[%emt 0:02:47]} 27. Nxc5 {[%emt 0:00:12]} Bf5 {[%emt 0:00:07]} 28. a4 {[%emt 0:03:29]} Rd8 {[%emt 0:01:28]} 29. Bg5 {[%emt 0:01:28]} Rd5 {[%emt 0:01:04]} 30. Rxd5 {[%emt 0:02:18]} cxd5 {[%emt 0:00:04]} 31. b4 {[%emt 0:01:23]} Qe8 {[%emt 0:02:11]} 32. Bf6 {[%emt 0:02:08]} Bf8 {[%emt 0:02:48]} 33. Rf1 {[%emt 0:03:00]} Bxc5+ {[%emt 0:02:00]} 34. bxc5 {[%emt 0:00:58]} Qxa4 {[%emt 0:02:26]} 35. Rxf5 {[%emt 0:02:34]} gxf5 {[%emt 0:00:07]} 36. Qg3+ {[%emt 0:00:10]} Kf8 {[%emt 0:00:06]} 37. e6 {[%emt 0:01:51]} Qa1+ {[%emt 0:01:21]} 38. Bxa1 {[%emt 0:00:12]} 1-0

[Event "Kragero Resort Chess A 2018"]
[Site "Kragero"]
[Date "2018.02.25"]
[Round "9"]
[White "Kantane, Anna"]
[Black "Sagafos, Magne"]
[Result "0-1"]
[ECO "B76"]
[WhiteElo "2254"]
[BlackElo "2384"]
[Annotator "NA"]
[PlyCount "70"]
[EventDate "2018.??.??"]
[EventType "swiss"]
[EventCountry "NOR"]
[SourceTitle "playchess.com"]
[Source "ChessBase"]
[SourceQuality "1"]
[TimeControl "5400+30"]

1. e4 {[%emt 0:00:00]} c5 {[%emt 0:00:13]} 2. Nf3 {[%emt 0:00:00]} d6 {[%emt 0:00:06]} 3. d4 {[%emt 0:00:00]} cxd4 {[%emt 0:00:05]} 4. Nxd4 {[%emt 0:00:05]} Nf6 {[%emt 0:00:07]} 5. Nc3 {[%emt 0:00:06]} g6 {[%emt 0:00:12]} 6. Be3 {[%emt 0:00:08]} Bg7 {[%emt 0:00:05]} 7. f3 {[%emt 0:00:15]} Nc6 {[%emt 0:00:06]} 8. Qd2 {[%emt 0:00:06]} O-O {[%emt 0:00:06]} 9. O-O-O {[%emt 0:01:51]} d5 {[%emt 0:00:24]} 10. Qe1 {[%emt 0:00:27]} e5 {[%emt 0:06:39]} 11. Nxc6 {[%emt 0:00:15]} bxc6 {[%emt 0:00:05]} 12. exd5 {[%emt 0:00:10]} Nxd5 {[%emt 0:00:06]} 13. Bc4 {[%emt 0:00:13]} Be6 {[%emt 0:00:11]} 14. Kb1 {[%emt 0:00:07]} Nxc3+ {[%emt 0:22:34]} 15. Qxc3 {[%emt 0:00:11]} Bd5 {[%emt 0:05:42]} 16. h4 {[%emt 0:18:40]} h5 {[%emt 0:11:24]} 17. Qd3 {[%emt 0:07:20]} Rb8 {[%emt 0:04:05]} 18. b3 {[%emt 0:07:45]} e4 {[%emt 0:22:03]} 19. fxe4 {[%emt 0:01:04]} Bxc4 {[%emt 0:00:43]} 20. Qxc4 {[%emt 0:00:12]} Qe7 {[%emt 0:02:41]} 21. Bc5 {[%emt 0:17:17]} Qe5 {[%emt 0:00:05]} 22. Qd4 {[%emt 0:01:03]} Qc7 {[%emt 0:08:29]} 23. Bd6 {[%emt 0:12:28]} Qa5 {[%emt 0:03:45]} 24. e5 {[%emt 0:00:47]} Rfd8 {[%emt 0:01:03]} 25. Rhe1 {[%emt 0:11:57]} Rb5 {[%emt 0:04:16]} 26. c4 {[%emt 0:00:57]} Rxe5 {[%emt 0:02:07]} 27. Rxe5 {[%emt 0:11:22]} Bxe5 {[%emt 0:00:08]} 28. Qxe5 {[%emt 0:00:05]} Qxe5 {[%emt 0:00:05]} 29. Bxe5 {[%emt 0:00:03]} Rxd1+ {[%emt 0:00:07]} 30. Kc2 {[%emt 0:00:03]} Re1 {[%emt 0:00:31]} 31. Bb8 {[%emt 0:00:57]} Re2+ {[%emt 0:00:12]} 32. Kc3 {[%emt 0:00:22]} Rxa2 {[%emt 0:00:54]} 33. g3 {[%emt 0:00:06]} a5 {[%emt 0:01:08]} 34. Kd4 {[%emt 0:00:07]} f6 {[%emt 0:01:31]} 35. Kc5 {[%emt 0:01:17]} a4 {[%emt 0:00:19]} 0-1

[Event "Kragero Resort Chess A 2018"]
[Site "Kragero"]
[Date "2018.02.25"]
[Round "9"]
[White "Nordquelle, Daniel"]
[Black "Nielsen, Andre"]
[Result "1/2-1/2"]
[ECO "C50"]
[WhiteElo "2220"]
[BlackElo "2145"]
[Annotator "NA"]
[PlyCount "60"]
[EventDate "2018.??.??"]
[EventType "swiss"]
[EventCountry "NOR"]
[SourceTitle "playchess.com"]
[Source "ChessBase"]
[SourceQuality "1"]
[TimeControl "5400+30"]

1. e4 {[%emt 0:00:00]} e5 {[%emt 0:00:07]} 2. Nf3 {[%emt 0:00:00]} Nc6 {[%emt 0:00:07]} 3. Bc4 {[%emt 0:00:00]} Nf6 {[%emt 0:00:12]} 4. d3 {[%emt 0:00:00]} Bc5 {[%emt 0:00:24]} 5. O-O {[%emt 0:00:00]} d6 {[%emt 0:02:44]} 6. a4 {[%emt 0:00:19]} O-O {[%emt 0:04:53]} 7. c3 {[%emt 0:01:23]} a5 {[%emt 0:02:11]} 8. Na3 {[%emt 0:00:20]} Ne7 {[%emt 0:04:56]} 9. Nc2 {[%emt 0:02:15]} Ng6 {[%emt 0:01:17]} 10. Re1 {[%emt 0:01:14]} Be6 {[%emt 0:06:15]} 11. Bxe6 {[%emt 0:03:37]} fxe6 {[%emt 0:00:17]} 12. d4 {[%emt 0:00:11]} Ba7 {[%emt 0:03:09]} 13. dxe5 {[%emt 0:03:16]} Ng4 {[%emt 0:03:57]} 14. Be3 {[%emt 0:22:14]} Bxe3 {[%emt 0:06:24]} 15. Nxe3 {[%emt 0:00:27]} N4xe5 {[%emt 0:00:59]} 16. Nxe5 {[%emt 0:01:59]} Nxe5 {[%emt 0:00:15]} 17. f3 {[%emt 0:00:45]} Qg5 {[%emt 0:05:09]} 18. Kh1 {[%emt 0:04:44]} Rf6 {[%emt 0:00:58]} 19. Qe2 {[%emt 0:04:21]} Raf8 {[%emt 0:03:49]} 20. Rad1 {[%emt 0:06:02]} h5 {[%emt 0:06:22]} 21. Nc4 {[%emt 0:02:26]} h4 {[%emt 0:09:18]} 22. Nxe5 {[%emt 0:05:07]} Qxe5 {[%emt 0:00:12]} 23. h3 {[%emt 0:00:16]} Rg6 {[%emt 0:05:49]} 24. Rf1 {[%emt 0:00:39]} Qf4 {[%emt 0:02:44]} 25. Qd2 {[%emt 0:01:17]} Qxd2 {[%emt 0:04:54]} 26. Rxd2 {[%emt 0:00:09]} e5 {[%emt 0:01:34]} 27. Rd5 {[%emt 0:02:08]} b6 {[%emt 0:00:57]} 28. Rfd1 {[%emt 0:00:17]} Re6 {[%emt 0:01:32]} 29. Kg1 {[%emt 0:01:22]} Kf7 {[%emt 0:01:17]} 30. Kf2 {[%emt 0:00:21]} Ke7 {[%emt 0:03:58]} 1/2-1/2